fUSD/lending_fUSD_20250222
["ID","MTS","AMOUNT","RATE_DAILY","PERIOD"]
[354128352,1740264644650,-323.20347792,0.00019325,2]
[354128354,1740264644659,-330.76166299,0.00019331,2]
[354128356,1740264644668,-5000.0,0.00019331,2]
[354128357,1740264644677,-150.0,0.00019333,2]
[354128359,1740264644686,-4048.39235296,0.00019341,2]
[354128362,1740264644696,-164.88807508,0.00019341,2]
[354128363,1740264644705,-2306.59190174,0.00019341,2]
[354128366,1740264644714,-221.0,0.00019341,2]
[354128368,1740264644725,-55555.0,0.00019341,2]
[354128369,1740264644734,-150.0,0.0001936,2]
[354128371,1740264644743,-150.0,0.00019369,2]
[354128373,1740264644752,-150.0,0.0001938,2]
[354128375,1740264644760,-150.0,0.00019395,2]
[354128377,1740264644769,-432.62,0.00019397,30]
[354128379,1740264644778,-1000.0,0.000194,2]
[354128381,1740264644787,-150.0,0.00019403,2]
[354128383,1740264644796,-23891.0205125,0.00019411,3]
[354128385,1740264644805,-150.0,0.00019412,2]
[354128387,1740264644814,-300.0,0.00019419,2]
[354128389,1740264644823,-500.0,0.0001942,2]
[354128391,1740264644832,-351.08125081,0.00019421,3]
[354128393,1740264644841,-214.02282516,0.00019421,3]
[354128395,1740264644849,-1052.9,0.00019421,3]
[354128397,1740264644858,-500.0,0.00019421,3]
[354128399,1740264644867,-506.71582122,0.00019421,3]
[354128401,1740264644876,-500.0,0.00019421,3]
[354128403,1740264644885,-329.29664218,0.00019421,3]
[354128405,1740264644894,-500.0,0.00019421,3]
[354128407,1740264644903,-500.0,0.00019421,3]
[354128409,1740264644912,-500.0,0.00019421,3]
[354128411,1740264644921,-500.0,0.00019421,3]
[354128413,1740264644929,-500.0,0.00019421,2]
[354128415,1740264644938,-500.0,0.00019421,3]
[354128417,1740264644947,-262801.225637,0.00019421,3]
[354128419,1740264644956,-150.0,0.00019425,4]
[354128421,1740264644965,-150.0,0.00019425,4]
[354128422,1740264644974,-433.759908,0.00019431,2]
[354128424,1740264644983,-724.7864293,0.00019431,2]
[354128427,1740264644992,-262801.225637,0.00019431,3]
[354128428,1740264645003,-150.0,0.00019432,2]
[354128430,1740264645012,-1613.49,0.0001944,2]
[354128432,1740264645021,-859.0,0.00019441,2]
[354128434,1740264645030,-340822.3350456,0.00019441,4]
[354128436,1740264645039,-191288.952898,0.00019441,4]
[354128438,1740264645048,-593918.76386799,0.00019441,4]
[354128441,1740264645062,-9412.55700053,0.00019441,4]
[354128443,1740264645072,-303.17662,0.00019441,4]
[354128445,1740264645083,-9600.0,0.00019441,4]
[354128447,1740264645096,-299381.07326236,0.00019441,4]
[354128450,1740264645112,-298.3043,0.00019441,4]
[354128546,1740264645998,-683.02117466,0.00019341,3]
[354128548,1740264646008,-705457.84167196,0.00019441,4]
[354128551,1740264646033,-468.8888796,0.00019441,4]
[354128556,1740264646066,-1678.02054453,0.00019441,4]
[354128562,1740264646179,-20002.212072,0.00019441,4]
[354128564,1740264646191,-10062.993556,0.00019441,4]
[354128567,1740264646205,-1436.74816541,0.00019441,4]
[354128569,1740264646232,-5193.113222,0.00019441,4]
[354128813,1740265832254,-550.0,0.0001,2]
[354128814,1740265832264,-560.15336276,0.00012,2]
[354128815,1740265832276,-39.84663724,0.00012,2]
[354128816,1740265832285,-1000.0,0.00012328,2]
[354128817,1740265832294,-1000.0,0.00012602,2]
[354128818,1740265832304,-963.81765095,0.00012616,2]
[354128819,1740265832316,-639.78187031,0.00012616,2]
[354128820,1740265832331,-1124.49855846,0.00012616,2]
[354128821,1740265832343,-3580.26171952,0.00012616,2]
[354128822,1740265832353,-250.0,0.00012616,2]
[354128823,1740265832362,-457.64185509,0.00012876,2]
[354128824,1740265832372,-542.35814491,0.00012876,2]
[354128825,1740265832382,-300.0,0.00013688,2]
[354128826,1740265832391,-2499.74184509,0.00013689,2]
[354128827,1740265832404,-473.33872835,0.00013689,2]
[354128828,1740265832415,-365.66549,0.00013689,2]
[354128829,1740265832470,-721.64177466,0.00013689,2]
[354128830,1740265832513,-4439.6121619,0.00013689,2]
[354128831,1740265832523,-584.3331402,0.00013698,2]
[354128832,1740265832533,-3495.40318648,0.00013698,2]
[354128833,1740265832544,-5004.59681352,0.00013698,2]
[354128834,1740265832554,-650.0,0.00014,2]
[354128835,1740265832564,-150.99,0.00014,2]
[354128836,1740265832573,-1183.0,0.00014612,5]
[354128837,1740265832583,-1000.0,0.00014819,2]
[354128838,1740265832592,-420.0,0.00015001,2]
[354128839,1740265832602,-1000.0,0.00015066,2]
[354128840,1740265832611,-312.27,0.00015091,2]
[354128841,1740265832621,-330.81835962,0.00015605,2]
[354128842,1740265832632,-169.18164038,0.00015605,2]
[354128843,1740265832642,-113.54118774,0.00015605,2]
[354128844,1740265832654,-386.45881226,0.00015605,2]
[354128845,1740265832664,-500.0,0.00015605,2]
[354128846,1740265832674,-150.553,0.00015851,2]
[354128847,1740265832683,-1110.0,0.00015851,2]
[354128848,1740265832693,-700.0,0.00016,2]
[354128849,1740265832703,-587.0,0.0001644,2]
[354128850,1740265832712,-224.52,0.00017196,2]
[354128852,1740265832722,-221.64,0.00017214,2]
[354128853,1740265832731,-1000.0,0.00017329,2]
[354128855,1740265832740,-200.0,0.00017349,2]
[354128858,1740265832750,-312.27,0.00017355,2]
[354128859,1740265832759,-157.74089385,0.00017482,2]
[354128862,1740265832768,-150.0,0.00017482,2]
[354128863,1740265832777,-150.0,0.00017482,2]
[354128866,1740265832787,-150.0,0.00017561,2]
[354128868,1740265832797,-200.0,0.00017562,2]
[354128869,1740265832806,-200.0,0.00017562,2]
[354128872,1740265832815,-200.0,0.00017562,2]
[354128874,1740265832825,-200.0,0.00017562,2]
[354128876,1740265832835,-200.0,0.00017562,2]
[354128877,1740265832844,-200.0,0.00017562,2]
[354128879,1740265832854,-200.0,0.00017562,2]
[354128881,1740265832864,-200.0,0.00017562,2]
[354128883,1740265832874,-200.0,0.00017562,2]
[354128885,1740265832883,-200.0,0.00017562,2]
[354128887,1740265832893,-200.0,0.00017562,2]
[354128889,1740265832902,-200.0,0.00017562,2]
[354128891,1740265832919,-200.0,0.00017562,2]
[354128893,1740265832932,-200.0,0.00017562,2]
[354128895,1740265832942,-200.0,0.00017562,2]
[354128897,1740265832951,-200.0,0.00017562,2]
[354128899,1740265832962,-200.0,0.00017562,2]
[354128902,1740265832972,-200.0,0.00017562,2]
[354128904,1740265832981,-200.0,0.00017562,2]
[354128906,1740265832992,-200.0,0.00017562,2]
[354128908,1740265833001,-200.0,0.00017562,2]
[354128910,1740265833011,-200.0,0.00017562,2]
[354128912,1740265833020,-200.0,0.00017562,2]
[354128914,1740265833029,-200.0,0.00017562,2]
[354128916,1740265833038,-213.0,0.00017562,2]
[354128918,1740265833047,-235.65604558,0.00017753,2]
[354128920,1740265833057,-168.64,0.00017797,2]
[354128922,1740265833067,-235.65604558,0.00017836,2]
[354128924,1740265833077,-235.65604558,0.00017918,2]
[354128926,1740265833086,-955.953567,0.00018,8]
[354128928,1740265833096,-235.65604558,0.00018,2]
[354128930,1740265833105,-680.0,0.00018016,2]
[354128932,1740265833115,-235.65604558,0.00018082,2]
[354128934,1740265833124,-235.65604558,0.00018164,2]
[354128936,1740265833134,-235.65604558,0.00018247,2]
[354128938,1740265833143,-300.0,0.00018356,2]
[354128940,1740265833153,-235.65604558,0.00018356,2]
[354128942,1740265833163,-159.3,0.0001838,2]
[354128944,1740265833172,-2361.949,0.0001838,2]
[354128946,1740265833181,-168.776,0.0001838,2]
[354128948,1740265833191,-235.65604558,0.00018438,2]
[354128950,1740265833201,-500.0,0.00018454,2]
[354128952,1740265833211,-152.54,0.000185,31]
[354128954,1740265833220,-152.54,0.000185,31]
[354128956,1740265833230,-152.54,0.000185,31]
[354128958,1740265833240,-152.54,0.000185,31]
[354128960,1740265833249,-152.54,0.000185,31]
[354128962,1740265833258,-152.54,0.000185,31]
[354128964,1740265833268,-152.54,0.000185,31]
[354128966,1740265833278,-235.65604558,0.00018521,2]
[354128968,1740265833287,-3554.76,0.00018533,2]
[354128970,1740265833297,-200.0,0.00018549,2]
[354128972,1740265833306,-235.65604558,0.00018603,2]
[354128974,1740265833316,-1000.0,0.00018665,2]
[354128976,1740265833325,-235.65604558,0.00018685,2]
[354128978,1740265833335,-1187.0,0.000188,2]
[354128980,1740265833344,-208.55795852,0.000189,2]
[354128982,1740265833353,-63761.0,0.00019,2]
[354128984,1740265833362,-587.7014635,0.00019052,2]
[354128986,1740265833371,-154.61,0.00019052,2]
[354128988,1740265833380,-200.0,0.000192,2]
[354128990,1740265833389,-317.369,0.00019241,2]
[354128992,1740265833399,-157.9705722,0.0001933,2]
[354128994,1740265833408,-155.22427168,0.00019331,2]
[354128996,1740265833417,-3778.49952942,0.00019331,2]
[354128998,1740265833427,-163.89606293,0.00019331,2]
[354129000,1740265833436,-167.00804495,0.00019331,2]
[354129002,1740265833445,-954.92233312,0.00019331,3]
[354129004,1740265833454,-2500.0,0.00019331,2]
[354129006,1740265833464,-164.88807508,0.00019341,2]
[354129008,1740265833473,-221.0,0.00019341,2]
[354129010,1740265833481,-1000.0,0.00019341,2]
[354129012,1740265833490,-157.97057213,0.00019371,2]
[354129014,1740265833499,-418.77,0.00019397,30]
[354129016,1740265833508,-159.3,0.00019416,2]
[354129018,1740265833517,-500.0,0.0001942,2]
[354129020,1740265833526,-404.17697157,0.0001942,2]
[354129022,1740265833536,-500.0,0.0001942,2]
[354129024,1740265833545,-500.0,0.0001942,2]
[354129026,1740265833555,-500.0,0.0001942,2]
[354129028,1740265833564,-500.0,0.0001942,2]
[354129030,1740265833574,-500.0,0.0001942,2]
[354129031,1740265833583,-500.0,0.0001942,2]
[354129033,1740265833593,-500.0,0.0001942,2]
[354129035,1740265833602,-500.0,0.0001942,2]
[354129037,1740265833612,-384.41770766,0.0001942,2]
[354129039,1740265833622,-500.0,0.0001942,2]
[354129041,1740265833631,-500.0,0.0001942,2]
[354129043,1740265833641,-130881.242807,0.00019421,3]
[354129045,1740265833652,-1009.03,0.0001943,3]
[354129047,1740265833663,-665.86,0.0001943,3]
[354129049,1740265833673,-500.0,0.0001943,3]
[354129051,1740265833683,-165.88496892,0.0001943,3]
[354129052,1740265833693,-375.11159672,0.0001943,3]
[354129053,1740265833703,-500.0,0.0001943,3]
[354129054,1740265833713,-500.0,0.0001943,3]
[354129055,1740265833723,-456.84352627,0.0001943,3]
[354129056,1740265833732,-500.0,0.0001943,3]
[354129057,1740265833742,-199.50477708,0.0001943,3]
[354129058,1740265833751,-361.46659,0.00019431,2]
[354129059,1740265833761,-603.9886911,0.00019431,2]
[354129060,1740265833771,-207.4079074,0.00019431,2]
[354129061,1740265833781,-847.8498764,0.00019431,2]
[354129063,1740265833791,-163152.05465435,0.00019431,3]
[354129065,1740265833806,-3308.37344125,0.00019431,3]
[354129068,1740265833817,-13696.974953,0.00019431,3]
[354129070,1740265833829,-599.29702508,0.00019431,3]
[354129072,1740265833840,-2809.38538136,0.00019431,3]
[354129074,1740265833852,-1517.07440125,0.00019431,3]
[354129076,1740265833864,-1101.0,0.00019431,3]
[354129503,1740265838191,-157.97057213,0.00019413,2]
[354129505,1740265838202,-503.3239092,0.00019431,2]
[354129507,1740265838211,-211.25551867,0.00019431,3]
[354129509,1740265838223,-4175.35911836,0.00019431,3]
[354129512,1740265838242,-9743.44710273,0.00019431,3]
[354129520,1740265838304,-1131.86393258,0.00019431,3]
[354129522,1740265838316,-21003.76938636,0.00019431,3]
[354129538,1740265838464,-1561.74006999,0.00019431,3]
[354129741,1740265840460,-323.20347792,0.00019331,2]
[354129744,1740265840469,-442.52494776,0.00019431,3]
[354129746,1740265840481,-5058.01401283,0.00019431,3]
[354129748,1740265840493,-141318.05400843,0.00019431,3]
[354129750,1740265840502,-89262.62848164,0.00019431,3]
[354129768,1740265840664,-1186.29038303,0.00019431,3]
[354129771,1740265840676,-517.536,0.00019431,3]
[354130026,1740265843291,-153.0,0.00014291,2]
[354130028,1740265843301,-153.0,0.00014291,2]
[354130030,1740265843311,-95.13281917,0.00014291,2]
[354130033,1740265843322,-57.86718083,0.00014291,2]
[354130035,1740265843332,-153.0,0.00014291,2]
[354130037,1740265843342,-116.51967249,0.00014291,2]
[354130039,1740265843354,-36.48032751,0.00014291,2]
[354130041,1740265843363,-36697.08460603,0.00019431,3]
[354130048,1740265843440,-153.0,0.00014291,2]
[354130050,1740265843450,-390.24717739,0.00019431,3]
[354130052,1740265843462,-502.52787948,0.00019431,3]
[354130062,1740265843559,-30009.24445643,0.00019431,3]
[354130065,1740265843569,-1001.0,0.0001944,4]
[354130066,1740265843579,-1546.26,0.0001944,2]
[354130068,1740265843588,-777.0,0.00019441,2]
[354130070,1740265843598,-398982.14424506,0.00019441,4]
[354130072,1740265843607,-648374.58621768,0.00019441,4]
[354130074,1740265843617,-5446.81571306,0.00019441,4]
[354130076,1740265843627,-1000.0,0.00019441,4]
[354130078,1740265843637,-200.0,0.00019441,2]
[354130080,1740265843648,-1000.0,0.00019441,10]
[354130082,1740265843658,-1418.49596,0.00019441,2]
[354130084,1740265843668,-62753.21086191,0.00019441,2]
[354130086,1740265843678,-6000.0,0.00019444,10]
[354130088,1740265843688,-606.87,0.00019452,3]
[354130090,1740265843699,-825.91,0.00019452,3]
[354130092,1740265843709,-152.0,0.00019452,2]
[354130094,1740265843719,-150.0,0.00019452,2]
[354130096,1740265843729,-157.97057213,0.00019454,2]
[354130098,1740265843739,-500.0,0.00019473,2]
[354130100,1740265843748,-341.14363,0.00019488,7]
[354130102,1740265843758,-1000.0,0.00019495,2]
[354130104,1740265843768,-2000.0,0.00019499,2]
[354130107,1740265843777,-32442.43832782,0.000195,2]
[354130110,1740265843787,-15783.16,0.000195,15]
[354130113,1740265843796,-310.13875018,0.000195,5]
[354130116,1740265843806,-500.0,0.000195,2]
[354130118,1740265843817,-652.0642461,0.000195,2]
[354130120,1740265843826,-500.0,0.000195,2]
[354130122,1740265843836,-3600.0,0.000195,2]
[354130124,1740265843845,-500.0,0.000195,2]
[354130126,1740265843854,-3600.0,0.000195,2]
[354130128,1740265843864,-500.0,0.000195,2]
[354130130,1740265843874,-500.0,0.000195,2]
[354130132,1740265843883,-3600.0,0.000195,2]
[354130134,1740265843894,-500.0,0.000195,2]
[354130136,1740265843905,-3600.0,0.000195,2]
[354130138,1740265843917,-500.0,0.000195,2]
[354130140,1740265843927,-3600.0,0.000195,2]
[354130142,1740265843937,-500.0,0.000195,2]
[354130144,1740265843946,-3600.0,0.000195,2]
[354130145,1740265843956,-3600.0,0.000195,2]
[354130147,1740265843966,-3600.0,0.000195,2]
[354130150,1740265843976,-3600.0,0.000195,2]
[354130152,1740265843986,-3600.0,0.000195,2]
[354130165,1740265844167,-3600.0,0.000195,2]
[354130167,1740265844177,-3600.0,0.000195,2]
[354130169,1740265844187,-3600.0,0.000195,2]
[354130170,1740265844197,-6548.32249431,0.000195,2]
[354130172,1740265844206,-500.0,0.000195,2]
[354130173,1740265844216,-500.0,0.000195,2]
[354130175,1740265844225,-1900.0,0.000195,2]
[354130177,1740265844234,-500.0,0.000195,2]
[354130178,1740265844244,-500.0,0.000195,2]
[354130180,1740265844253,-1900.0,0.000195,2]
[354130182,1740265844262,-592.66700104,0.000195,2]
[354130183,1740265844272,-500.0,0.000195,2]
[354130185,1740265844282,-1900.0,0.000195,2]
[354130187,1740265844291,-1900.0,0.000195,2]
[354130188,1740265844300,-1900.0,0.000195,2]
[354130190,1740265844310,-1900.0,0.000195,2]
[354130191,1740265844319,-500.0,0.000195,2]
[354130193,1740265844329,-1900.0,0.000195,2]
[354130195,1740265844338,-1900.0,0.000195,2]
[354130196,1740265844348,-1900.0,0.000195,2]
[354130198,1740265844357,-1900.0,0.000195,2]
[354130200,1740265844366,-500.0,0.000195,2]
[354130202,1740265844375,-1900.0,0.000195,2]
[354130203,1740265844384,-767.25281653,0.000195,2]
[354130205,1740265844394,-1900.0,0.000195,2]
[354130206,1740265844404,-500.0,0.000195,2]
[354130208,1740265844414,-1900.0,0.000195,2]
[354130210,1740265844423,-3047.19570592,0.000195,2]
[354130212,1740265844432,-500.0,0.000195,2]
[354130214,1740265844442,-500.0,0.000195,2]
[354130215,1740265844451,-500.0,0.000195,2]
[354130217,1740265844460,-500.0,0.000195,2]
[354130219,1740265844469,-500.0,0.000195,2]
[354130221,1740265844478,-520.52042087,0.000195,2]
[354130222,1740265844487,-500.0,0.000195,2]
[354130224,1740265844496,-548.92954795,0.000195,2]
[354130226,1740265844505,-500.0,0.000195,2]
[354130227,1740265844515,-500.0,0.000195,2]
[354130229,1740265844524,-500.0,0.000195,2]
[354130231,1740265844533,-500.0,0.000195,2]
[354130232,1740265844542,-500.0,0.000195,2]
[354130234,1740265844551,-700.0,0.000195,2]
[354130236,1740265844560,-504.1511244,0.000195,2]
[354130238,1740265844569,-700.0,0.000195,2]
[354130239,1740265844578,-700.0,0.000195,2]
[354130241,1740265844587,-500.0,0.000195,2]
[354130243,1740265844597,-700.0,0.000195,2]
[354130245,1740265844607,-700.0,0.000195,2]
[354130246,1740265844616,-500.0,0.000195,2]
[354130248,1740265844626,-700.0,0.000195,2]
[354130250,1740265844636,-500.0,0.000195,2]
[354130252,1740265844646,-700.0,0.000195,2]
[354130254,1740265844656,-500.0,0.000195,2]
[354130255,1740265844665,-700.0,0.000195,2]
[354130257,1740265844675,-500.0,0.000195,2]
[354130259,1740265844684,-700.0,0.000195,2]
[354130261,1740265844694,-591.6483975,0.000195,2]
[354130262,1740265844704,-700.0,0.000195,2]
[354130264,1740265844714,-700.0,0.000195,2]
[354130266,1740265844723,-700.0,0.000195,2]
[354130267,1740265844732,-1327.13857629,0.000195,2]
[354130269,1740265844742,-1100.0,0.000195,2]
[354130271,1740265844751,-1100.0,0.000195,2]
[354130273,1740265844760,-500.0,0.000195,2]
[354130274,1740265844770,-1100.0,0.000195,2]
[354130276,1740265844780,-500.0,0.000195,2]
[354130278,1740265844789,-1100.0,0.000195,2]
[354130280,1740265844798,-500.0,0.000195,2]
[354130281,1740265844807,-1100.0,0.000195,2]
[354130283,1740265844816,-1000.0,0.000195,2]
[354130285,1740265844825,-500.0,0.000195,2]
[354130287,1740265844834,-1000.0,0.000195,2]
[354130289,1740265844844,-1100.0,0.000195,2]
[354130291,1740265844853,-500.0,0.000195,2]
[354130293,1740265844862,-1000.0,0.000195,2]
[354130295,1740265844874,-1100.0,0.000195,2]
[354130297,1740265844884,-500.0,0.000195,2]
[354130299,1740265844893,-1000.0,0.000195,2]
[354130301,1740265844903,-1100.0,0.000195,2]
[354130303,1740265844915,-500.0,0.000195,2]
[354130305,1740265844925,-1100.0,0.000195,2]
[354130307,1740265844935,-1000.0,0.000195,2]
[354130308,1740265844943,-500.0,0.000195,2]
[354130310,1740265844952,-1000.0,0.000195,2]
[354130311,1740265844962,-1100.0,0.000195,2]
[354130312,1740265844971,-500.0,0.000195,2]
[354130313,1740265844980,-1000.0,0.000195,2]
[354130314,1740265844990,-753.42302925,0.000195,2]
[354130315,1740265845002,-1100.0,0.000195,2]
[354130316,1740265845011,-1000.0,0.000195,2]
[354130317,1740265845020,-1100.0,0.000195,2]
[354130318,1740265845029,-1000.0,0.000195,2]
[354130319,1740265845038,-1959.60271721,0.000195,2]
[354130320,1740265845047,-1000.0,0.000195,2]
[354130321,1740265845056,-1000.0,0.000195,2]
[354130322,1740265845065,-1000.0,0.000195,2]
[354130323,1740265845074,-1000.0,0.000195,2]
[354130324,1740265845084,-1625.78029305,0.000195,2]
[354130326,1740265845093,-150.0,0.000195,2]
[354130328,1740265845103,-500.0,0.000195,2]
[354130330,1740265845113,-1009.03,0.00019513,3]
[354130332,1740265845122,-665.86,0.00019513,3]
[354130334,1740265845131,-500.0,0.0001952,2]
[354130336,1740265845140,-163.89606292,0.00019521,2]
[354130338,1740265845149,-150.0,0.00019527,2]
[354130340,1740265845160,-500.0,0.00019527,2]
[354130342,1740265845169,-164.88807508,0.0001953,2]
[354130344,1740265845179,-189.0,0.00019555,2]
[354130346,1740265845189,-500.0,0.00019555,2]
[354130348,1740265845198,-3023.64,0.00019558,2]
[354130350,1740265845207,-208.5579585,0.00019567,2]
[354130352,1740265845216,-500.0,0.00019582,2]
[354130353,1740265845225,-1009.03,0.00019595,3]
[354130355,1740265845235,-665.86,0.00019595,3]
[354130357,1740265845244,-157545.0,0.000196,7]
[354130360,1740265845254,-19230.91010502,0.000196,7]
[354130361,1740265845263,-23806.900992,0.000196,7]
[354130363,1740265845273,-500.0,0.0001961,2]
[354130366,1740265845283,-3292.82818235,0.0001961,2]
[354130368,1740265845292,-312.27,0.00019619,2]
[354130369,1740265845301,-500.0,0.0001962,2]
[354130371,1740265845310,-2500.0,0.00019623,2]
[354130373,1740265845320,-500.0,0.00019637,2]
[354130375,1740265845329,-2544.08,0.00019657,2]
[354130377,1740265845338,-5000.0,0.00019658,2]
[354130379,1740265845348,-167.00804495,0.0001966,2]
[354130381,1740265845357,-455.34744978,0.0001966,3]
[354130383,1740265845368,-500.0,0.00019664,2]
[354130385,1740265845377,-2396.83,0.00019677,2]
[354130387,1740265845386,-1009.03,0.00019677,3]
[354130389,1740265845396,-665.86,0.00019677,3]
[354130391,1740265845405,-500.0,0.00019692,2]
[354130393,1740265845414,-2000.0,0.00019699,2]
[354130395,1740265845424,-151.0,0.000197,2]
[354130397,1740265845434,-3000.0,0.000197,2]
[354130399,1740265845443,-163.89606292,0.0001971,2]
[354130401,1740265845452,-500.0,0.00019719,2]
[354130403,1740265845462,-164.88807508,0.0001972,2]
[354130405,1740265845472,-500.0,0.0001972,2]
[354130407,1740265845481,-300.0,0.00019726,2]
[354130409,1740265845491,-500.0,0.00019726,2]
[354130411,1740265845500,-334.4431919,0.00019726,2]
[354130413,1740265845510,-151.0,0.00019726,2]
[354130415,1740265845519,-296.021654,0.00019726,2]
[354130417,1740265845529,-100385.42058037,0.00019726,2]
[354130419,1740265845539,-606.89980672,0.00019726,3]
[354130421,1740265845549,-826.11634319,0.00019726,3]
[354130423,1740265845558,-500.0,0.00019726,3]
[354130425,1740265845567,-500.0,0.00019726,3]
[354130427,1740265845576,-500.0,0.00019726,3]
[354130429,1740265845586,-500.0,0.00019726,3]
[354130431,1740265845595,-500.0,0.00019745,2]
[354130433,1740265845604,-25000.0,0.00019746,2]
[354130435,1740265845612,-361.46659,0.00019746,2]
[354130437,1740265845621,-361.46659,0.00019746,2]
[354130439,1740265845631,-361.46659,0.00019746,2]
[354130441,1740265845641,-361.46659,0.00019746,2]
[354130443,1740265845651,-207.4079074,0.00019746,2]
[354130445,1740265845661,-207.4079074,0.00019746,2]
[354130447,1740265845671,-207.4079074,0.00019746,2]
[354130449,1740265845680,-207.4079074,0.00019746,2]
[354130451,1740265845689,-847.8498764,0.00019746,2]
[354130453,1740265845699,-847.8498764,0.00019746,2]
[354130455,1740265845708,-847.8498764,0.00019746,2]
[354130457,1740265845717,-847.8498764,0.00019746,2]
[354130459,1740265845726,-503.3239092,0.00019746,2]
[354130461,1740265845736,-503.3239092,0.00019746,2]
[354130463,1740265845744,-503.3239092,0.00019746,2]
[354130465,1740265845754,-503.3239092,0.00019746,2]
[354130467,1740265845763,-154.61,0.00019747,2]
[354130469,1740265845772,-500.0,0.00019747,2]
[354130471,1740265845782,-5000.0,0.00019747,2]
[354130473,1740265845791,-500.0,0.00019749,3]
[354130475,1740265845801,-1009.03,0.00019759,3]
[354130477,1740265845817,-665.86,0.00019759,3]
[354130479,1740265845827,-780.37132424,0.00019759,3]
[354130481,1740265845837,-25000.0,0.0001976,2]
[354130483,1740265845846,-151.0,0.0001976,2]
[354130485,1740265845855,-193.061232,0.0001976,2]
[354130487,1740265845866,-215.00735,0.0001976,2]
[354130489,1740265845875,-151.0,0.0001976,2]
[354130491,1740265845885,-151.0,0.0001976,2]
[354130493,1740265845895,-151.0,0.0001976,2]
[354130495,1740265845905,-151.0,0.0001976,2]
[354130496,1740265845916,-151.0,0.0001976,2]
[354130499,1740265845926,-151.0,0.0001976,2]
[354130500,1740265845936,-151.0,0.0001976,2]
[354130503,1740265845946,-151.0,0.0001976,2]
[354130504,1740265845955,-1537.72793448,0.0001977,2]
[354130506,1740265845967,-500.0,0.00019774,2]
[354130509,1740265845982,-1376.14,0.00019778,2]
[354130511,1740265846000,-2500.0,0.00019784,2]
[354130514,1740265846011,-176897.62591545,0.000198,7]
[354130516,1740265846021,-500.0,0.00019801,2]
[354130518,1740265846030,-493.15,0.00019817,2]
[354130520,1740265846040,-500.0,0.0001982,2]
[354130522,1740265846050,-500.0,0.00019829,2]
[354130524,1740265846059,-5000.0,0.00019829,2]
[354130526,1740265846069,-490.91603495,0.00019832,3]
[354130529,1740265846079,-25000.0,0.0001984,2]
[354130530,1740265846088,-1009.03,0.00019841,3]
[354130533,1740265846097,-665.86,0.00019841,3]
[354130534,1740265846107,-1300.86,0.00019844,2]
[354130536,1740265846117,-500.0,0.00019856,2]
[354130538,1740265846126,-361.46659,0.00019857,2]
[354130540,1740265846136,-207.4079074,0.00019857,2]
[354130542,1740265846145,-847.8498764,0.00019857,2]
[354130544,1740265846155,-503.3239092,0.00019857,2]
[354130546,1740265846165,-25000.0,0.00019868,2]
[354130548,1740265846174,-300.0,0.00019869,2]
[354130551,1740265846184,-300.0,0.00019869,2]
[354130552,1740265846194,-969183.15125029,0.0001987,3]
[354130565,1740265846293,-303.88286928,0.0001987,3]
[354130567,1740265846305,-425.73802,0.0001987,3]
[354130577,1740265846375,-153.0,0.00014291,2]
[354130579,1740265846385,-157.97057213,0.00019495,2]